fUSD/lending_fUSD_20240803
["ID","MTS","AMOUNT","RATE_DAILY","PERIOD"]
[334026791,1722691839692,-800.0,0.00020068,2]
[334026792,1722691839702,-306.54421766,0.00020109,2]
[334026793,1722691839712,-400.0,0.00020157,2]
[334026794,1722691839722,-765.06849032,0.00020324,2]
[334026796,1722691839731,-255.35,0.00020368,2]
[334026797,1722691839740,-538.79782132,0.00020563,2]
[334026799,1722691839750,-4790.36180023,0.00020588,2]
[334026800,1722691839760,-366.9755387,0.00020588,2]
[334026801,1722691839769,-500.0,0.00020616,2]
[334026802,1722691839780,-700.0,0.00020616,2]
[334026803,1722691839790,-800.0,0.00020616,2]
[334026804,1722691839800,-831.31838446,0.00020759,2]
[334026805,1722691839809,-370.25397205,0.00020899,2]
[334026807,1722691839819,-500.0,0.00021164,2]
[334026809,1722691839828,-500.0,0.00021164,2]
[334026810,1722691839838,-700.0,0.00021164,2]
[334026812,1722691839847,-800.0,0.00021164,2]
[334026814,1722691839856,-2068.0,0.00021644,2]
[334026816,1722691839866,-159.13045808,0.00021647,2]
[334026818,1722691839876,-500.0,0.00021712,2]
[334026820,1722691839885,-700.0,0.00021712,2]
[334026822,1722691839895,-800.0,0.00021712,2]
[334026824,1722691839905,-2000.0,0.00021917,2]
[334026826,1722691839915,-1024.1,0.00021918,2]
[334026828,1722691839924,-150.0,0.00021918,2]
[334026830,1722691839934,-500.0,0.00021918,2]
[334026832,1722691839944,-500.0,0.00021918,2]
[334026834,1722691839953,-500.0,0.00021918,2]
[334026836,1722691839963,-500.0,0.00021918,2]
[334026838,1722691839972,-317.63979547,0.00021918,2]
[334026840,1722691839982,-173.0,0.00022,2]
[334026842,1722691839991,-538.79782132,0.00022009,2]
[334026844,1722691840005,-464.36660518,0.0002215,2]
[334026845,1722691840016,-400.0,0.00022173,2]
[334026846,1722691840026,-2000.0,0.00022191,2]
[334026847,1722691840035,-1000.0,0.00022236,2]
[334026848,1722691840045,-500.0,0.0002226,2]
[334026849,1722691840055,-700.0,0.0002226,2]
[334026850,1722691840064,-800.0,0.0002226,2]
[334026851,1722691840074,-2000.0,0.00022465,2]
[334026852,1722691840083,-150.0,0.00022495,2]
[334026853,1722691840093,-162.0,0.00022615,2]
[334026854,1722691840103,-2000.0,0.00022739,2]
[334026855,1722691840114,-500.0,0.00022808,2]
[334026856,1722691840123,-700.0,0.00022808,2]
[334026857,1722691840133,-800.0,0.00022808,2]
[334026858,1722691840143,-2000.0,0.00023013,2]
[334026859,1722691840153,-150.0,0.00023071,2]
[334026860,1722691840163,-500.0,0.00023124,2]
[334026861,1722691840172,-180.0,0.00023205,2]
[334026862,1722691840182,-500.0,0.00023356,2]
[334026863,1722691840192,-700.0,0.00023356,2]
[334026864,1722691840201,-800.0,0.00023356,2]
[334026865,1722691840211,-538.79782132,0.00023454,2]
[334026866,1722691840220,-150.0,0.00023648,2]
[334026867,1722691840230,-500.0,0.00023904,2]
[334026868,1722691840240,-420.57,0.00024055,2]
[334026869,1722691840249,-834.45,0.00024055,2]
[334026870,1722691840259,-834.45,0.00024055,2]
[334026871,1722691840269,-420.57,0.00024055,2]
[334026872,1722691840278,-419.6,0.00024055,2]
[334026873,1722691840288,-834.45,0.00024055,2]
[334026875,1722691840298,-834.45,0.00024055,2]
[334026877,1722691840307,-834.45,0.00024055,2]
[334026879,1722691840317,-834.45,0.00024055,2]
[334026881,1722691840327,-834.45,0.00024055,2]
[334026883,1722691840337,-834.45,0.00024055,2]
[334026885,1722691840346,-834.45,0.00024055,2]
[334026887,1722691840355,-152.28,0.00024114,2]
[334026889,1722691840365,-2023.34906436,0.00024124,2]
[334026891,1722691840374,-6288.50435063,0.00024124,2]
[334026893,1722691840384,-155.0,0.00024124,2]
[334026895,1722691840393,-482.88,0.00024139,2]
[334026897,1722691840403,-400.0,0.00024188,2]
[334026898,1722691840413,-425.44,0.00024192,2]
[334026900,1722691840423,-300.0,0.00024192,2]
[334026901,1722691840432,-150.0,0.00024225,2]
[334026902,1722691840442,-500.0,0.00024452,2]
[334026903,1722691840452,-700.0,0.00024452,2]
[334026904,1722691840462,-800.0,0.00024452,2]
[334026905,1722691840472,-356.74,0.00024466,2]
[334026906,1722691840481,-356.15,0.00024545,2]
[334026907,1722691840491,-356.15,0.00024545,2]
[334026908,1722691840501,-385.67687638,0.00024574,2]
[334026909,1722691840511,-500.0,0.00024599,2]
[334026910,1722691840522,-500.0,0.00024657,9]
[334026911,1722691840531,-510.01,0.00024657,9]
[334026912,1722691840541,-500.0,0.00024657,9]
[334026913,1722691840551,-500.0,0.00024657,9]
[334026914,1722691840560,-494.27,0.00024657,9]
[334026915,1722691840571,-500.0,0.00024657,9]
[334026916,1722691840580,-500.0,0.00024657,9]
[334026917,1722691840590,-500.0,0.00024657,9]
[334026918,1722691840599,-500.0,0.00024657,9]
[334026919,1722691840608,-500.0,0.00024657,9]
[334026920,1722691840618,-500.0,0.00024657,9]
[334026921,1722691840627,-558.35,0.00024657,9]
[334026922,1722691840637,-555.04,0.00024657,9]
[334026923,1722691840646,-500.0,0.00024657,9]
[334026924,1722691840656,-500.0,0.00024657,9]
[334026925,1722691840665,-500.0,0.00024657,9]
[334026926,1722691840675,-500.0,0.00024657,9]
[334026927,1722691840685,-446.04,0.00024657,9]
[334026928,1722691840695,-500.0,0.00024657,9]
[334026929,1722691840705,-626.5,0.00024657,9]
[334026930,1722691840715,-500.0,0.00024657,9]
[334026931,1722691840725,-500.0,0.00024657,9]
[334026932,1722691840736,-558.02,0.00024657,9]
[334026933,1722691840747,-500.0,0.00024657,9]
[334026934,1722691840759,-500.0,0.00024657,9]
[334026935,1722691840770,-150.0,0.00024657,9]
[334026936,1722691840779,-150.0,0.00024657,9]
[334026937,1722691840789,-150.0,0.00024657,9]
[334026938,1722691840799,-187.84,0.00024657,9]
[334026939,1722691840808,-500.0,0.00024657,9]
[334026940,1722691840817,-256.75,0.00024657,9]
[334026941,1722691840827,-500.0,0.00024657,9]
[334026942,1722691840836,-500.0,0.00024657,9]
[334026943,1722691840845,-590.58,0.00024657,9]
[334026944,1722691840855,-500.0,0.00024657,9]
[334026945,1722691840865,-500.0,0.00024657,9]
[334026946,1722691840874,-371.71,0.00024657,9]
[334026947,1722691840883,-620.38,0.00024657,9]
[334026948,1722691840893,-500.0,0.00024657,9]
[334026949,1722691840902,-500.0,0.00024657,9]
[334026950,1722691840912,-500.0,0.00024657,9]
[334026951,1722691840922,-500.0,0.00024657,9]
[334026952,1722691840931,-500.0,0.00024657,9]
[334026953,1722691840941,-500.0,0.00024657,9]
[334026954,1722691840951,-500.0,0.00024657,9]
[334026955,1722691840960,-406.28,0.00024657,9]
[334026956,1722691840969,-500.0,0.00024657,9]
[334026957,1722691840979,-445.6,0.00024657,9]
[334026958,1722691840988,-500.0,0.00024657,9]
[334026959,1722691840999,-437.4,0.00024657,9]
[334026960,1722691841009,-565.72,0.00024657,9]
[334026961,1722691841018,-500.0,0.00024657,9]
[334026962,1722691841028,-500.0,0.00024657,9]
[334026963,1722691841037,-500.0,0.00024657,9]
[334026964,1722691841048,-500.0,0.00024657,9]
[334026965,1722691841057,-389.11,0.00024657,9]
[334026966,1722691841067,-643.09,0.00024657,9]
[334026967,1722691841077,-500.0,0.00024657,9]
[334026968,1722691841086,-500.0,0.00024657,9]
[334026969,1722691841096,-500.0,0.00024657,9]
[334026970,1722691841106,-500.0,0.00024657,9]
[334026971,1722691841115,-500.0,0.00024657,9]
[334026972,1722691841125,-500.0,0.00024657,9]
[334026973,1722691841134,-500.0,0.00024657,9]
[334026974,1722691841143,-500.0,0.00024657,9]
[334026975,1722691841152,-500.0,0.00024657,9]
[334026976,1722691841161,-500.0,0.00024657,9]
[334026977,1722691841171,-335.16110721,0.00024657,9]
[334026978,1722691841180,-500.0,0.00024657,9]
[334026979,1722691841190,-500.0,0.00024657,9]
[334026980,1722691841199,-500.0,0.00024657,9]
[334026981,1722691841209,-283.74,0.00024657,9]
[334026982,1722691841218,-500.0,0.00024657,9]
[334026983,1722691841227,-500.0,0.00024657,9]
[334026984,1722691841236,-500.0,0.00024657,9]
[334026985,1722691841247,-500.0,0.00024657,9]
[334026986,1722691841258,-500.0,0.00024657,9]
[334026987,1722691841267,-500.0,0.00024657,9]
[334026988,1722691841278,-355.78,0.00024657,9]
[334026989,1722691841289,-500.0,0.00024657,9]
[334026990,1722691841299,-290.0,0.00024657,9]
[334026991,1722691841310,-500.0,0.00024657,9]
[334026992,1722691841319,-500.0,0.00024657,9]
[334026993,1722691841329,-500.0,0.00024657,9]
[334026994,1722691841339,-500.0,0.00024657,9]
[334026995,1722691841349,-500.0,0.00024657,9]
[334026996,1722691841359,-200.87314205,0.00024657,9]
[334026997,1722691841368,-500.0,0.00024657,9]
[334026998,1722691841377,-500.0,0.00024657,9]
[334026999,1722691841386,-463.47,0.00024657,9]
[334027000,1722691841395,-500.0,0.00024657,9]
[334027001,1722691841405,-385.67687639,0.00024662,2]
[334027002,1722691841414,-1000.0,0.00024707,2]
[334027003,1722691841424,-1418.5719,0.0002475,2]
[334027004,1722691841433,-500.0,0.000248,2]
[334027005,1722691841444,-150.0,0.00024802,2]
[334027006,1722691841453,-155.0,0.00024899,2]
[334027007,1722691841463,-155.0,0.00024899,2]
[334027008,1722691841472,-400.85725149,0.00024899,2]
[334027009,1722691841482,-155.0,0.00024899,2]
[334027010,1722691841491,-155.0,0.00024899,2]
[334027011,1722691841501,-158.10285028,0.00024899,2]
[334027012,1722691841511,-464.36660518,0.000249,2]
[334027013,1722691841648,-159.13045808,0.000249,2]
[334027014,1722691841660,-538.79782132,0.000249,2]
[334027015,1722691841670,-13746.75811178,0.000249,2]
[334027016,1722691841679,-153.86,0.000249,31]
[334027017,1722691841690,-153.86,0.000249,31]
[334027018,1722691841701,-153.86,0.000249,31]
[334027019,1722691841711,-153.86,0.000249,31]
[334027020,1722691841720,-153.86,0.000249,31]
[334027021,1722691841730,-183.64362293,0.000249,2]
[334027022,1722691841740,-4534.84459588,0.000249,2]
[334027023,1722691841749,-500.0,0.00024932,120]
[334027024,1722691841759,-1619.78644028,0.00024979,3]
[334027025,1722691841769,-155.0,0.00024979,2]
[334027026,1722691841778,-155.0,0.00024979,2]
[334027027,1722691841788,-270.32721242,0.00024979,2]
[334027028,1722691841798,-195.04602618,0.00024979,2]
[334027029,1722691841808,-2727.56870853,0.00024979,2]
[334027030,1722691841817,-155.0,0.00024979,2]
[334027031,1722691841827,-155.0,0.00024979,2]
[334027032,1722691841837,-484.76607857,0.00024979,2]
[334027033,1722691841847,-1930.20669701,0.00024979,2]
[334027034,1722691841857,-164.9628186,0.00024979,2]
[334027035,1722691841866,-155.0,0.00024979,2]
[334027036,1722691841876,-247.37395801,0.00024989,2]
[334027037,1722691841885,-248.61042332,0.00024989,2]
[334027038,1722691841895,-200.0,0.00024989,2]
[334027039,1722691841904,-155.0,0.00024989,2]
[334027040,1722691841914,-155.0,0.00024989,2]
[334027041,1722691841923,-152.28,0.0002499,2]
[334027042,1722691841932,-152.28,0.0002499,2]
[334027043,1722691841947,-185.0,0.0002499,13]
[334027044,1722691841956,-152.28,0.0002499,2]
[334027045,1722691841966,-152.28,0.0002499,2]
[334027046,1722691841975,-152.28,0.0002499,2]
[334027047,1722691841984,-152.28,0.0002499,2]
[334027048,1722691841994,-152.28,0.0002499,2]
[334027049,1722691842003,-152.28,0.0002499,2]
[334027050,1722691842014,-152.28,0.0002499,2]
[334027051,1722691842024,-152.28,0.0002499,2]
[334027052,1722691842033,-152.28,0.0002499,2]
[334027053,1722691842042,-152.28,0.0002499,2]
[334027054,1722691842052,-155.0,0.00024996,2]
[334027055,1722691842061,-155.0,0.00024996,2]
[334027056,1722691842070,-155.0,0.00024996,2]
[334027057,1722691842080,-310.0,0.00024996,2]
[334027058,1722691842089,-155.0,0.00024996,2]
[334027059,1722691842098,-203.23601745,0.00024996,2]
[334027060,1722691842108,-1000.0,0.00024996,2]
[334027061,1722691842117,-203.23601745,0.00024996,2]
[334027062,1722691842128,-15213.81351656,0.00024997,2]
[334027063,1722691842138,-500.0,0.00024998,9]
[334027064,1722691842147,-500.0,0.00024998,9]
[334027065,1722691842157,-201.26135232,0.00024999,2]
[334027066,1722691842167,-1442.89279529,0.00024999,2]
[334027067,1722691842177,-176.25,0.00024999,9]
[334027068,1722691842187,-264.93,0.00024999,9]
[334027069,1722691842197,-322.72,0.00024999,9]
[334027070,1722691842206,-517.89,0.00024999,9]
[334027071,1722691842216,-290.28,0.00024999,9]
[334027072,1722691842225,-500.0,0.00024999,9]
[334027073,1722691842235,-500.0,0.00024999,9]
[334027074,1722691842244,-500.0,0.00024999,9]
[334027075,1722691842253,-500.0,0.00024999,9]
[334027076,1722691842263,-500.0,0.00024999,9]
[334027077,1722691842273,-198.65,0.00024999,9]
[334027078,1722691842282,-500.0,0.00024999,9]
[334027079,1722691842291,-500.0,0.00024999,9]
[334027080,1722691842301,-500.0,0.00024999,9]
[334027081,1722691842310,-500.0,0.00024999,9]
[334027082,1722691842319,-500.0,0.00024999,9]
[334027083,1722691842329,-500.0,0.00024999,9]
[334027084,1722691842339,-500.0,0.00024999,9]
[334027085,1722691842348,-500.0,0.00024999,9]
[334027086,1722691842358,-500.0,0.00024999,9]
[334027087,1722691842367,-500.0,0.00024999,9]
[334027088,1722691842377,-500.0,0.00024999,9]
[334027089,1722691842386,-544.9892365,0.00024999,9]
[334027090,1722691842395,-562.05,0.00024999,9]
[334027091,1722691842405,-200.0,0.00024999,9]
[334027092,1722691842415,-500.0,0.00024999,9]
[334027093,1722691842424,-500.0,0.00024999,9]
[334027094,1722691842434,-500.0,0.00024999,9]
[334027095,1722691842450,-500.0,0.00024999,9]
[334027096,1722691842459,-500.0,0.00024999,9]
[334027097,1722691842468,-500.0,0.00024999,9]
[334027098,1722691842478,-500.0,0.00024999,9]
[334027099,1722691842487,-625.04,0.00024999,9]
[334027100,1722691842497,-155.0,0.00024999,2]
[334027101,1722691842506,-380.01075921,0.00024999,2]
[334027102,1722691842516,-202.71790408,0.00024999,2]
[334027103,1722691842526,-438.31786915,0.00025,2]
[334027104,1722691842536,-1051267.01571797,0.00025,7]
[334027105,1722691842545,-500.0,0.00025,2]
[334027106,1722691842555,-307270.57846085,0.00025,2]
[334027110,1722691842639,-722.19529931,0.00012391,2]
[334027111,1722691842658,-415.90128528,0.00012391,2]
[334027112,1722691842668,-188.63628821,0.00012666,2]
[334027113,1722691842677,-155.0,0.00012749,2]
[334027115,1722691842688,-367.56511397,0.00012749,2]
[334027117,1722691842698,-351.96349341,0.00016159,2]
[334027118,1722691842710,-167.72922316,0.00016159,2]
[334027119,1722691842719,-169.43577684,0.00024657,9]
[334027120,1722691842731,-338.95422316,0.00024657,9]
[334027121,1722691842740,-135.29884198,0.00024979,2]
[334027122,1722691842752,-19.70115802,0.00024979,2]
[334027124,1722691842762,-309.01921538,0.00024979,2]
[334027126,1722691842771,-155.0,0.00024989,2]
[334027128,1722691842781,-210.87847398,0.00024996,2]
[334027130,1722691842791,-25335.86031844,0.00025,2]
[334027131,1722691842802,-1568.29552831,0.00025,2]
[334027132,1722691842813,-774.46656194,0.00025,2]
[334027133,1722691842839,-959.41436398,0.00025,2]
[334027134,1722691842859,-1873.3,0.00025,2]
[334027135,1722691842870,-8999.62620331,0.00025,2]
[334027136,1722691842882,-334.33817005,0.00025,2]
[334027137,1722691842898,-603.3557071,0.00025,2]
[334027138,1722691842909,-4300.15412192,0.00025,2]
[334027139,1722691842920,-1765.24035213,0.00025,2]
[334027140,1722691842932,-1289.97146931,0.00025,2]
[334027141,1722691842948,-5604.22868825,0.00024999,2]
[334027142,1722691842960,-3705.05,0.00024999,2]
[334027143,1722691843115,-377.11693109,0.00012391,2]
[334027146,1722691844668,-942.8899594,0.00012391,2]
[334027147,1722691844680,-516.68977398,0.00012391,2]
[334027148,1722691844689,-155.0,0.00012696,2]
[334027149,1722691844699,-922.77557589,0.00014519,2]
[334027150,1722691845917,-365.42577775,0.00012666,2]
[334027151,1722691845927,-150.95985299,0.00014519,2]
[334027152,1722691845939,-679.068,0.00020974,2]
[334027153,1722691845957,-781.88,0.00024055,2]
[334027154,1722691845967,-500.0,0.00024657,9]
[334027155,1722691845976,-155.0,0.00024996,2]
[334027156,1722691845986,-3224.47674239,0.00024999,2]
[334027157,1722691846137,-23163.5771132,0.00024999,2]
[334027158,1722691846146,-500.0,0.00024999,9]
[334027159,1722691846155,-15760.05418523,0.00025,2]
[334027160,1722691846166,-859.71593629,0.00025,2]
[334027452,1722693031982,-300.0,0.00011105,2]
[334027453,1722693032017,-231.81153519,0.00011105,2]
[334027454,1722693032027,-649.29247659,0.00011105,2]
[334027455,1722693032037,-155.0,0.00011105,2]
[334027456,1722693032047,-357.14442617,0.00011161,2]
[334027457,1722693032057,-357.14442617,0.00011161,2]
[334027458,1722693032068,-236.13758284,0.00011161,2]
[334027459,1722693032078,-719.34566812,0.00012855,2]
[334027460,1722693032088,-190.91,0.00013973,2]
[334027461,1722693032098,-493.20816609,0.00013979,2]
[334027462,1722693032108,-448.0,0.000177,2]
[334027463,1722693032117,-499.99,0.00017808,2]
[334027464,1722693032127,-499.52,0.00017813,2]
[334027465,1722693032137,-2738.96829242,0.00018711,2]
[334027466,1722693032149,-4378.47057813,0.00018711,2]
[334027467,1722693032161,-16782.56112945,0.00018711,2]
[334027468,1722693032171,-200.0,0.00019038,2]
[334027469,1722693032181,-200.0,0.00019038,2]
[334027470,1722693032190,-2212.1,0.00019145,2]
[334027471,1722693032200,-500.0,0.00019382,2]
[334027472,1722693032210,-155.0,0.00019387,2]
[334027473,1722693032220,-500.0,0.0001939,2]
[334027474,1722693032231,-155.0,0.00019398,2]
[334027475,1722693032240,-500.0,0.00019399,2]
[334027476,1722693032252,-500.0,0.00019408,2]
[334027477,1722693032263,-500.0,0.00019417,2]
[334027478,1722693032272,-500.0,0.00019426,2]
[334027479,1722693032282,-500.0,0.00019434,2]
[334027480,1722693032292,-500.0,0.00019443,2]
[334027481,1722693032302,-35474.75259938,0.0001945,2]
[334027482,1722693032314,-222.57994446,0.0001945,2]
[334027483,1722693032324,-150.0,0.00019451,2]
[334027484,1722693032334,-155.0,0.00019451,2]
[334027485,1722693032344,-60.05668354,0.00019452,2]
[334027486,1722693032356,-689.94331646,0.00019452,2]
[334027487,1722693032366,-406.68146999,0.00019452,2]
[334027488,1722693032378,-540.396828,0.00019452,2]
[334027490,1722693032390,-399.20391486,0.00019452,2]
[334027492,1722693032401,-1646.3803949,0.00019452,2]
[334027494,1722693032412,-484.32,0.00019452,2]
[334027496,1722693032425,-503.022718,0.00019452,2]
[334027500,1722693032448,-1311.12570647,0.00019452,2]
[334027502,1722693032458,-500.0,0.00019452,2]
[334027504,1722693032467,-174.19,0.00019716,3]
[334027506,1722693032477,-4395.11384839,0.00019716,2]
[334027508,1722693032486,-600.23497476,0.00019725,2]
[334027510,1722693032496,-600.23497476,0.00019725,2]
[334027512,1722693032509,-155.0,0.00019725,2]
[334027514,1722693032519,-35000.0,0.00019726,2]
[334027516,1722693032529,-5461.26094588,0.00019726,2]
[334027518,1722693032543,-17600.94429015,0.00019726,2]
[334027520,1722693032553,-1000.0,0.00019847,2]
[334027522,1722693032563,-1725.0,0.00019899,2]
[334027524,1722693032572,-250.0,0.00019927,2]
[334027526,1722693032583,-5800.0,0.0001997,2]
[334027528,1722693032594,-5800.0,0.00019978,2]
[334027530,1722693032604,-5800.0,0.00019987,2]
[334027532,1722693032614,-22639.6617797,0.00019999,2]
[334027534,1722693032624,-500.0,0.00020068,2]
[334027536,1722693032634,-500.0,0.00020068,2]
[334027538,1722693032644,-499.52,0.00020076,2]
[334027578,1722693033123,-155.0,0.00020191,2]
[334027581,1722693033144,-1404.85068933,0.00020191,2]
[334027584,1722693033155,-370.25397205,0.0002038,2]
[334027586,1722693033165,-6288.50435063,0.0002038,2]
[334027587,1722693033175,-243.04057273,0.00020439,2]
[334027589,1722693033186,-190.91,0.00020447,2]
[334027592,1722693033197,-366.9755387,0.00020588,2]
[334027594,1722693033207,-155.0,0.00020831,2]
[334027596,1722693033218,-155.0,0.00020831,2]
[334027598,1722693033228,-236.44533916,0.00020831,2]
[334027599,1722693033237,-15469.99110515,0.00020899,2]
[334027602,1722693033247,-7000.0,0.00020899,3]
[334027603,1722693033258,-25301.89520735,0.00020899,2]
[334027605,1722693033268,-5399.26968187,0.00020999,2]
[334027607,1722693033278,-768.296,0.00021015,2]
[334027609,1722693033288,-1255.0,0.00021015,2]
[334027612,1722693033299,-801.193,0.00021015,2]
[334027614,1722693033309,-321.91,0.00021015,2]
[334027616,1722693033319,-352.794,0.00021015,2]
[334027618,1722693033330,-5825.0,0.00021015,2]
[334027620,1722693033340,-457.619,0.00021015,2]
[334027622,1722693033350,-348.38,0.00021086,3]
[334027624,1722693033360,-500.0,0.00021164,2]
[334027626,1722693033370,-500.0,0.00021164,2]
[334027628,1722693033380,-500.0,0.00021164,2]
[334027630,1722693033390,-500.0,0.00021164,2]
[334027632,1722693033400,-250.0,0.00021528,2]
[334027634,1722693033409,-150.0,0.00021559,2]
[334027636,1722693033419,-1786.24,0.00021562,2]
[334027638,1722693033429,-500.0,0.00021712,2]
[334027639,1722693033440,-500.0,0.00021712,2]
[334027642,1722693033450,-933.70500004,0.00021795,2]
[334027643,1722693033459,-3527.68,0.00021866,2]
[334027645,1722693033468,-853.41,0.00021918,2]
[334027647,1722693033477,-150.0,0.00021918,2]
[334027649,1722693033488,-500.0,0.0002226,2]
[334027651,1722693033500,-500.0,0.0002226,2]
[334027653,1722693033510,-500.0,0.0002226,2]
[334027655,1722693033520,-500.0,0.0002226,2]
[334027657,1722693033530,-1000.0,0.00022328,2]
[334027659,1722693033539,-499.52,0.0002234,2]
[334027661,1722693033550,-150.0,0.00022495,2]
[334027663,1722693033559,-500.0,0.00022808,2]
[334027665,1722693033569,-200.0,0.00023,2]
[334027667,1722693033581,-150.0,0.00023071,2]
[334027669,1722693033591,-400.0,0.00023083,2]
[334027671,1722693033601,-180.0,0.00023205,2]
[334027673,1722693033610,-219.57898479,0.00023356,2]
[334027675,1722693033620,-500.0,0.00023356,2]
[334027677,1722693033631,-500.0,0.00023356,2]
[334027679,1722693033641,-155.0,0.00023451,2]
[334027681,1722693033651,-3079.46952702,0.00023451,2]
[334027683,1722693033661,-3079.46952702,0.00023451,2]
[334027685,1722693033671,-298.38594994,0.00023451,2]
[334027687,1722693033682,-150.0,0.00023648,2]
[334027689,1722693033692,-971.72119001,0.00023726,2]
[334027691,1722693033703,-2808.81009139,0.00023873,2]
[334027693,1722693033713,-2144.08330696,0.00023873,2]
[334027695,1722693033723,-203.23601745,0.00023873,2]
[334027697,1722693033733,-4790.36180023,0.00023873,2]
[334027699,1722693033743,-2023.34906436,0.00023873,2]
[334027701,1722693033753,-500.0,0.00023904,2]
[334027703,1722693033763,-3401.38185264,0.00024124,2]
[334027705,1722693033773,-4473.05915228,0.00024124,2]
[334027707,1722693033784,-3976.46597667,0.00024124,2]
[334027709,1722693033795,-4473.05915228,0.00024124,2]
[334027711,1722693033805,-3401.38185264,0.00024124,2]
[334027713,1722693033814,-297.22909311,0.00024124,2]
[334027715,1722693033826,-519.69271657,0.00024124,2]
[334027717,1722693033835,-150.0,0.00024225,2]
[334027718,1722693033846,-303.45610569,0.00024452,2]
[334027720,1722693033856,-500.0,0.00024452,2]
[334027722,1722693033866,-356.15,0.0002455,2]
[334027724,1722693033876,-585.89,0.0002455,2]
[334027726,1722693033886,-150.0,0.0002455,2]
[334027728,1722693033896,-425.91,0.0002455,2]
[334027730,1722693033906,-425.91,0.0002455,2]
[334027732,1722693033915,-425.91,0.0002455,2]
[334027734,1722693033925,-425.91,0.0002455,2]
[334027736,1722693033935,-499.52,0.00024604,2]
[334027738,1722693033945,-500.0,0.00024657,9]
[334027740,1722693033955,-500.0,0.00024657,9]
[334027742,1722693033965,-500.0,0.00024657,9]
[334027744,1722693033974,-500.0,0.00024657,9]
[334027746,1722693033984,-500.0,0.00024657,9]
[334027748,1722693033995,-578.11,0.00024657,9]
[334027750,1722693034005,-500.0,0.00024657,9]
[334027752,1722693034014,-500.0,0.00024657,9]
[334027754,1722693034024,-500.0,0.00024657,9]
[334027756,1722693034035,-500.0,0.00024657,9]
[334027758,1722693034045,-500.0,0.00024657,9]
[334027760,1722693034055,-500.0,0.00024657,9]
[334027762,1722693034065,-500.0,0.00024657,9]
[334027764,1722693034075,-177.15,0.00024657,9]
[334027766,1722693034085,-500.0,0.00024657,9]
[334027768,1722693034095,-500.0,0.00024657,9]
[334027770,1722693034105,-500.0,0.00024657,9]
[334027772,1722693034115,-500.0,0.00024657,9]
[334027774,1722693034124,-500.0,0.00024657,9]
[334027776,1722693034134,-500.0,0.00024657,9]
[334027778,1722693034145,-500.0,0.00024657,9]
[334027780,1722693034154,-500.0,0.00024657,9]
[334027782,1722693034165,-15956.5,0.000248,2]
[334027784,1722693034175,-500.0,0.000248,2]
[334027786,1722693034186,-150.0,0.00024802,2]
[334027788,1722693034196,-1000.0,0.00024809,2]
[334027790,1722693034206,-76598.0259,0.00024879,2]
[334027792,1722693034216,-3118.19667245,0.00024899,2]
[334027794,1722693034226,-155.0,0.00024899,2]
[334027796,1722693034236,-231.05555903,0.00024899,2]
[334027798,1722693034246,-206.59146968,0.00024899,2]
[334027800,1722693034256,-359.08278976,0.00024899,2]
[334027802,1722693034266,-1175.8459067,0.00024899,2]
[334027804,1722693034277,-164.23718751,0.00024899,2]